[Event "Titled Tuesday Blitz May 23 Early 2023"]
[White "Mendez Fortes, Eduardo Jesus"]
[Black "Bagwe Gaurang"]
[WhiteFideId "3502376"]
[BlackFideId "45039895"]
[WhiteElo "2307"]
[BlackElo "1847"]
[Result "0-1"]
[Round "06"]
[TimeControl "180+2"]
[Date "2023.05.23"]
[WhiteClock "0:00:53"]
[BlackClock "0:00:07"]

1. e4 {[%clk 0:03:00]}  c5 {[%clk 0:02:55]} 2. Nf3 {[%clk 0:03:01]}  d6 {[%clk 0:02:54]} 3. d4 {[%clk 0:03:01]}  cxd4 {[%clk 0:02:55]} 4. Nxd4 {[%clk 0:03:02]}  Nf6 {[%clk 0:02:55]} 5. Nc3 {[%clk 0:03:03]}  a6 {[%clk 0:02:55]} 6. Bg5 {[%clk 0:03:03]}  Nbd7 {[%clk 0:02:55]} 7. Bc4 {[%clk 0:03:03]}  e6 {[%clk 0:02:54]} 8. Qe2 {[%clk 0:03:03]}  b5 {[%clk 0:02:50]} 9. Bb3 {[%clk 0:03:02]}  Bb7 {[%clk 0:02:50]} 10. f3 {[%clk 0:03:01]}  h6 {[%clk 0:02:49]} 11. Bh4 {[%clk 0:02:59]}  Be7 {[%clk 0:02:49]} 12. Bf2 {[%clk 0:02:54]}  Qc7 {[%clk 0:02:48]} 13. O-O {[%clk 0:02:54]}  O-O {[%clk 0:02:47]} 14. a3 {[%clk 0:02:53]}  Rac8 {[%clk 0:02:44]} 15. Rad1 {[%clk 0:02:52]}  Nb6 {[%clk 0:02:43]} 16. Kh1 {[%clk 0:02:49]}  Nc4 {[%clk 0:02:42]} 17. Bxc4 {[%clk 0:02:49]}  Qxc4 {[%clk 0:02:43]} 18. Qe1 {[%clk 0:02:49]}  Nd7 {[%clk 0:02:39]} 19. Nb3 {[%clk 0:02:48]}  Qc7 {[%clk 0:02:38]} 20. Be3 {[%clk 0:02:47]}  Ne5 {[%clk 0:02:31]} 21. Qg3 {[%clk 0:02:46]}  Kh7 {[%clk 0:02:29]} 22. Bc1 {[%clk 0:02:37]}  Nc4 {[%clk 0:02:27]} 23. Ne2 {[%clk 0:02:34]}  d5 {[%clk 0:02:00]} 24. Qxc7 {[%clk 0:02:30]}  Rxc7 {[%clk 0:01:59]} 25. exd5 {[%clk 0:02:30]}  Bxd5 {[%clk 0:01:57]} 26. Nf4 {[%clk 0:02:31]}  Bb7 {[%clk 0:01:53]} 27. Nd3 {[%clk 0:02:31]}  Rg8 {[%clk 0:01:49]} 28. c3 {[%clk 0:02:31]}  Rd8 {[%clk 0:01:47]} 29. Nf2 {[%clk 0:02:31]}  Rcd7 {[%clk 0:01:41]} 30. Rxd7 {[%clk 0:02:30]}  Rxd7 {[%clk 0:01:42]} 31. Rd1 {[%clk 0:02:31]}  Rc7 {[%clk 0:01:36]} 32. Bf4 {[%clk 0:02:28]}  e5 {[%clk 0:01:35]} 33. Bg3 {[%clk 0:02:27]}  f5 {[%clk 0:01:35]} 34. Nd3 {[%clk 0:02:25]}  f4 {[%clk 0:01:25]} 35. Bf2 {[%clk 0:02:25]}  Rd7 {[%clk 0:01:24]} 36. Nbc1 {[%clk 0:02:14]}  e4 {[%clk 0:01:17]} 37. fxe4 {[%clk 0:02:13]}  Bxe4 {[%clk 0:01:18]} 38. Bd4 {[%clk 0:02:13]}  f3 {[%clk 0:01:15]} 39. Kg1 {[%clk 0:02:06]}  fxg2 {[%clk 0:01:10]} 40. Re1 {[%clk 0:02:06]}  Nd2 {[%clk 0:01:03]} 41. Ne5 {[%clk 0:02:01]}  Rd5 {[%clk 0:00:52]} 42. Ne2 {[%clk 0:01:52]}  Rxe5 {[%clk 0:00:35]} 43. Bxe5 {[%clk 0:01:50]}  Nf3+ {[%clk 0:00:35]} 44. Kf2 {[%clk 0:01:50]}  Bh4+ {[%clk 0:00:33]} 45. Bg3 {[%clk 0:01:48]}  Be7 {[%clk 0:00:20]} 46. Rd1 {[%clk 0:01:39]}  Bc5+ {[%clk 0:00:19]} 47. Nd4 {[%clk 0:01:39]}  h5 {[%clk 0:00:13]} 48. Bf4 {[%clk 0:01:38]}  g1=Q+ {[%clk 0:00:09]} 49. Rxg1 {[%clk 0:01:38]}  Nxg1 {[%clk 0:00:10]} 50. Kxg1 {[%clk 0:01:38]}  Bd5 {[%clk 0:00:10]} 51. Be3 {[%clk 0:01:38]}  Kg6 {[%clk 0:00:10]} 52. h4 {[%clk 0:01:38]}  Kf7 {[%clk 0:00:10]} 53. Kf2 {[%clk 0:01:38]}  Be7 {[%clk 0:00:09]} 54. Kg3 {[%clk 0:01:38]}  Bd6+ {[%clk 0:00:09]} 55. Bf4 {[%clk 0:01:38]}  Be7 {[%clk 0:00:10]} 56. Nf5 {[%clk 0:01:34]}  Bf6 {[%clk 0:00:10]} 57. Ne3 {[%clk 0:01:34]}  Be6 {[%clk 0:00:10]} 58. Nc2 {[%clk 0:01:31]}  a5 {[%clk 0:00:10]} 59. Bc7 {[%clk 0:01:30]}  a4 {[%clk 0:00:11]} 60. Ne1 {[%clk 0:01:28]}  g5 {[%clk 0:00:11]} 61. hxg5 {[%clk 0:01:28]}  Bxg5 {[%clk 0:00:11]} 62. Nd3 {[%clk 0:01:24]}  h4+ {[%clk 0:00:12]} 63. Kf3 {[%clk 0:01:25]}  Bd5+ {[%clk 0:00:11]} 64. Kg4 {[%clk 0:01:24]}  Bf6 {[%clk 0:00:12]} 65. Nc5 {[%clk 0:01:13]}  Kg6 {[%clk 0:00:10]} 66. Bf4 {[%clk 0:01:12]}  Bc4 {[%clk 0:00:10]} 67. Ne4 {[%clk 0:01:08]}  Be2+ {[%clk 0:00:10]} 68. Kh3 {[%clk 0:01:09]}  Be7 {[%clk 0:00:10]} 69. Bd6 {[%clk 0:01:06]}  Bd8 {[%clk 0:00:10]} 70. Nc5 {[%clk 0:01:03]}  Kf5 {[%clk 0:00:10]} 71. Nb7 {[%clk 0:00:59]}  Bg4+ {[%clk 0:00:10]} 72. Kh2 {[%clk 0:00:58]}  Bg5 {[%clk 0:00:11]} 73. Na5 {[%clk 0:00:54]}  Ke4 {[%clk 0:00:10]} 74. Nc6 {[%clk 0:00:54]}  Kd3 {[%clk 0:00:10]} 75. Nd4 {[%clk 0:00:54]}  Kc4 {[%clk 0:00:10]} 76. Bb4 {[%clk 0:00:52]}  Be3 {[%clk 0:00:09]} 77. Kg2 {[%clk 0:00:51]}  Bf4 {[%clk 0:00:09]} 78. Kh1 {[%clk 0:00:47]}  h3 {[%clk 0:00:10]} 79. Nc6 {[%clk 0:00:40]}  Bf3+ {[%clk 0:00:09]} 80. Kg1 {[%clk 0:00:40]}  h2+ {[%clk 0:00:09]} 81. Kf2 {[%clk 0:00:41]}  Bxc6 {[%clk 0:00:09]} 82. b3+ {[%clk 0:00:42]}  Kxb3 {[%clk 0:00:09]} 83. Bd6 {[%clk 0:00:42]}  Bxd6 {[%clk 0:00:08]} 84. Ke2 {[%clk 0:00:43]}  Kxa3 {[%clk 0:00:09]} 85. Kd3 {[%clk 0:00:44]}  Be4+ {[%clk 0:00:08]} 86. Kd4 {[%clk 0:00:45]}  Bc5+ {[%clk 0:00:08]} 87. Ke5 {[%clk 0:00:45]}  Bd4+ {[%clk 0:00:09]} 88. Ke6 {[%clk 0:00:46]}  Bxc3 {[%clk 0:00:09]} 89. Kd7 {[%clk 0:00:46]}  Be5 {[%clk 0:00:09]} 90. Kc8 {[%clk 0:00:46]}  Bd5 {[%clk 0:00:10]} 91. Kd7 {[%clk 0:00:46]}  Bd6 {[%clk 0:00:11]} 92. Kc8 {[%clk 0:00:47]}  Bc7 {[%clk 0:00:11]} 93. Kd7 {[%clk 0:00:47]}  h1=Q {[%clk 0:00:11]} 94. Kc8 {[%clk 0:00:48]}  Bc6 {[%clk 0:00:11]} 95. Kxc7 {[%clk 0:00:47]}  Qd5 {[%clk 0:00:11]} 96. Kb6 {[%clk 0:00:48]}  b4 {[%clk 0:00:10]} 97. Ka7 {[%clk 0:00:48]}  Qd7+ {[%clk 0:00:09]} 98. Kb6 {[%clk 0:00:48]}  Bd5 {[%clk 0:00:07]} 99. Kc5 {[%clk 0:00:49]}  Qc6+ {[%clk 0:00:07]} 100. Kd4 {[%clk 0:00:49]}  Bh1 {[%clk 0:00:07]} 101. Ke5 {[%clk 0:00:50]}  b3 {[%clk 0:00:08]} 102. Kf4 {[%clk 0:00:50]}  b2 {[%clk 0:00:08]} 103. Ke3 {[%clk 0:00:51]}  b1=Q {[%clk 0:00:08]} 104. Kd2 {[%clk 0:00:52]}  Qb2+ {[%clk 0:00:07]} 105. Ke3 {[%clk 0:00:53]}  Qe4# {[%clk 0:00:07]} 0-1


[Site "https://www.chess.com"]

[Event "Titled Tuesday Blitz May 23 Early 2023"]
[White "Shukhman, Anna"]
[Black "Schnaider, Ilan"]
[WhiteFideId "54180058"]
[BlackFideId "169013"]
[WhiteElo "2235"]
[BlackElo "2224"]
[Result "1-0"]
[Round "06"]
[TimeControl "180+2"]
[Date "2023.05.23"]
[WhiteClock "0:01:28"]
[BlackClock "0:00:02"]

1. e4 {[%clk 0:03:00]}  c5 {[%clk 0:02:59]} 2. Nf3 {[%clk 0:03:00]}  d6 {[%clk 0:02:58]} 3. d4 {[%clk 0:03:00]}  cxd4 {[%clk 0:02:59]} 4. Nxd4 {[%clk 0:03:01]}  Nf6 {[%clk 0:03:00]} 5. Nc3 {[%clk 0:03:02]}  a6 {[%clk 0:03:00]} 6. Qd3 {[%clk 0:03:01]}  e5 {[%clk 0:02:56]} 7. Nf5 {[%clk 0:03:01]}  Bxf5 {[%clk 0:02:43]} 8. exf5 {[%clk 0:03:02]}  Nc6 {[%clk 0:02:43]} 9. Bg5 {[%clk 0:03:01]}  Be7 {[%clk 0:02:37]} 10. O-O-O {[%clk 0:03:00]}  b5 {[%clk 0:02:23]} 11. f4 {[%clk 0:02:59]}  Nd4 {[%clk 0:01:30]} 12. Bxf6 {[%clk 0:02:52]}  Bxf6 {[%clk 0:01:30]} 13. Nd5 {[%clk 0:02:52]}  Rc8 {[%clk 0:01:25]} 14. c3 {[%clk 0:02:52]}  Rc5 {[%clk 0:01:14]} 15. Qe4 {[%clk 0:02:47]}  O-O {[%clk 0:01:07]} 16. Kb1 {[%clk 0:02:45]}  Nc6 {[%clk 0:00:59]} 17. b4 {[%clk 0:02:43]}  Rxd5 {[%clk 0:00:48]} 18. Qxd5 {[%clk 0:02:42]}  Ne7 {[%clk 0:00:48]} 19. Qxd6 {[%clk 0:02:42]}  Qc8 {[%clk 0:00:48]} 20. fxe5 {[%clk 0:02:41]}  Nxf5 {[%clk 0:00:45]} 21. Qd7 {[%clk 0:02:27]}  Qxc3 {[%clk 0:00:27]} 22. Qxf5 {[%clk 0:02:18]}  Bxe5 {[%clk 0:00:25]} 23. Rd2 {[%clk 0:02:05]}  Qxd2 {[%clk 0:00:09]} 24. Qxe5 {[%clk 0:02:02]}  Qd1+ {[%clk 0:00:09]} 25. Kb2 {[%clk 0:02:01]}  Rc8 {[%clk 0:00:09]} 26. Bd3 {[%clk 0:01:30]}  Qxh1 {[%clk 0:00:05]} 27. Bxh7+ {[%clk 0:01:29]}  Kh8 {[%clk 0:00:02]} 28. Bc2 {[%clk 0:01:28]}  Qxg2 {[%clk 0:00:01]} 29. Qh5+ {[%clk 0:01:27]}  Kg8 {[%clk 0:00:02]} 30. Qh7+ {[%clk 0:01:28]}  Kf8 {[%clk 0:00:03]} 31. Qh8+ {[%clk 0:01:29]}  Ke7 {[%clk 0:00:03]} 32. Qxc8 {[%clk 0:01:29]}  Qxh2 {[%clk 0:00:04]} 33. Qb7+ {[%clk 0:01:29]}  Kf8 {[%clk 0:00:02]} 34. Qa8+ {[%clk 0:01:28]}  Ke7 {[%clk 0:00:02]} 35. Qa7+ {[%clk 0:01:28]}  Kf8 {[%clk 0:00:02]} 36. Qc5+ {[%clk 0:01:28]}  Kg8 {[%clk 0:00:02]} 37. Qc8# {[%clk 0:01:28]} 1-0


[Site "https://www.chess.com"]

[Event "Titled Tuesday Blitz May 23 Early 2023"]
[White "Zavortink, Matt"]
[Black "Skliarov, Viktor"]
[WhiteFideId "2034263"]
[BlackFideId "14106736"]
[WhiteElo "2476"]
[BlackElo "2317"]
[Result "0-1"]
[Round "06"]
[TimeControl "180+2"]
[Date "2023.05.23"]
[WhiteClock "0:00:08"]
[BlackClock "0:00:19"]

1. Nf3 {[%clk 0:03:00]}  g6 {[%clk 0:02:59]} 2. e4 {[%clk 0:03:00]}  c5 {[%clk 0:02:59]} 3. c3 {[%clk 0:02:55]}  Bg7 {[%clk 0:02:58]} 4. d4 {[%clk 0:02:55]}  cxd4 {[%clk 0:02:58]} 5. cxd4 {[%clk 0:02:56]}  d5 {[%clk 0:02:58]} 6. e5 {[%clk 0:02:56]}  Nc6 {[%clk 0:02:59]} 7. Bb5 {[%clk 0:02:52]}  a6 {[%clk 0:02:57]} 8. Bxc6+ {[%clk 0:02:52]}  bxc6 {[%clk 0:02:58]} 9. O-O {[%clk 0:02:49]}  f6 {[%clk 0:02:57]} 10. Bf4 {[%clk 0:02:42]}  Nh6 {[%clk 0:02:56]} 11. exf6 {[%clk 0:02:30]}  exf6 {[%clk 0:02:55]} 12. Re1+ {[%clk 0:02:29]}  Kf7 {[%clk 0:02:52]} 13. Nbd2 {[%clk 0:02:26]}  Nf5 {[%clk 0:02:45]} 14. Nb3 {[%clk 0:02:24]}  g5 {[%clk 0:02:38]} 15. Be3 {[%clk 0:02:10]}  Re8 {[%clk 0:02:27]} 16. Qd2 {[%clk 0:02:01]}  g4 {[%clk 0:02:19]} 17. Ng5+ {[%clk 0:01:51]}  fxg5 {[%clk 0:02:17]} 18. Bxg5 {[%clk 0:01:52]}  Bf6 {[%clk 0:02:06]} 19. Bxf6 {[%clk 0:01:51]}  Qxf6 {[%clk 0:02:05]} 20. Rxe8 {[%clk 0:01:48]}  Kxe8 {[%clk 0:02:04]} 21. Re1+ {[%clk 0:01:38]}  Kf7 {[%clk 0:01:59]} 22. Qf4 {[%clk 0:01:36]}  h5 {[%clk 0:01:53]} 23. Qc7+ {[%clk 0:01:31]}  Ne7 {[%clk 0:01:48]} 24. Na5 {[%clk 0:01:03]}  Bf5 {[%clk 0:01:46]} 25. Nxc6 {[%clk 0:01:01]}  Re8 {[%clk 0:01:46]} 26. Ne5+ {[%clk 0:00:55]}  Kf8 {[%clk 0:01:36]} 27. b4 {[%clk 0:00:49]}  Ng6 {[%clk 0:01:26]} 28. a4 {[%clk 0:00:40]}  Nxe5 {[%clk 0:01:14]} 29. dxe5 {[%clk 0:00:40]}  Qe7 {[%clk 0:01:13]} 30. Qb6 {[%clk 0:00:37]}  Qe6 {[%clk 0:00:57]} 31. Qc5+ {[%clk 0:00:35]}  Kg7 {[%clk 0:00:56]} 32. b5 {[%clk 0:00:34]}  axb5 {[%clk 0:00:56]} 33. axb5 {[%clk 0:00:35]}  Be4 {[%clk 0:00:49]} 34. b6 {[%clk 0:00:30]}  Qxe5 {[%clk 0:00:42]} 35. f3 {[%clk 0:00:26]}  gxf3 {[%clk 0:00:42]} 36. gxf3 {[%clk 0:00:18]}  Qg5+ {[%clk 0:00:42]} 37. Kf2 {[%clk 0:00:18]}  Qh4+ {[%clk 0:00:37]} 38. Kf1 {[%clk 0:00:12]}  Bd3+ {[%clk 0:00:28]} 39. Kg2 {[%clk 0:00:13]}  Qg5+ {[%clk 0:00:19]} 40. Kf2 {[%clk 0:00:08]}  Qd2+ {[%clk 0:00:19]} 0-1


[Site "https://www.chess.com"]

[Event "Titled Tuesday Blitz May 23 Early 2023"]
[White "Jeet, Jain"]
[Black "Shubenkova, Veronika"]
[WhiteFideId "5073022"]
[BlackFideId "44124040"]
[WhiteElo "2067"]
[BlackElo "2060"]
[Result "1-0"]
[Round "06"]
[TimeControl "180+2"]
[Date "2023.05.23"]
[WhiteClock "0:01:29"]
[BlackClock "0:00:28"]

1. Nf3 {[%clk 0:02:54]}  d5 {[%clk 0:02:59]} 2. b3 {[%clk 0:02:54]}  Nf6 {[%clk 0:02:56]} 3. e3 {[%clk 0:02:54]}  g6 {[%clk 0:02:56]} 4. Bb2 {[%clk 0:02:54]}  Bg7 {[%clk 0:02:55]} 5. c4 {[%clk 0:02:55]}  c6 {[%clk 0:02:55]} 6. Nc3 {[%clk 0:02:54]}  O-O {[%clk 0:02:55]} 7. d4 {[%clk 0:02:55]}  Bg4 {[%clk 0:02:52]} 8. h3 {[%clk 0:02:54]}  Bf5 {[%clk 0:02:51]} 9. Ne5 {[%clk 0:02:52]}  Nbd7 {[%clk 0:02:49]} 10. g4 {[%clk 0:02:52]}  Be6 {[%clk 0:02:48]} 11. f4 {[%clk 0:02:52]}  Ne4 {[%clk 0:02:45]} 12. Nxe4 {[%clk 0:02:45]}  dxe4 {[%clk 0:02:43]} 13. Bg2 {[%clk 0:02:42]}  Nxe5 {[%clk 0:02:36]} 14. fxe5 {[%clk 0:02:42]}  Bh6 {[%clk 0:02:27]} 15. Qe2 {[%clk 0:02:35]}  Qa5+ {[%clk 0:02:19]} 16. Qd2 {[%clk 0:02:29]}  Qxd2+ {[%clk 0:02:08]} 17. Kxd2 {[%clk 0:02:29]}  f5 {[%clk 0:02:07]} 18. exf6 {[%clk 0:02:27]}  Rxf6 {[%clk 0:02:07]} 19. Raf1 {[%clk 0:02:27]}  Raf8 {[%clk 0:02:06]} 20. Ke2 {[%clk 0:02:27]}  b5 {[%clk 0:01:59]} 21. Rxf6 {[%clk 0:02:19]}  exf6 {[%clk 0:01:56]} 22. cxb5 {[%clk 0:02:14]}  cxb5 {[%clk 0:01:56]} 23. Bxe4 {[%clk 0:02:11]}  Re8 {[%clk 0:01:56]} 24. Bc6 {[%clk 0:02:08]}  Rc8 {[%clk 0:01:46]} 25. Rc1 {[%clk 0:02:05]}  b4 {[%clk 0:01:38]} 26. d5 {[%clk 0:02:03]}  Bf7 {[%clk 0:01:37]} 27. Bxf6 {[%clk 0:02:01]}  Bf8 {[%clk 0:01:31]} 28. Bd4 {[%clk 0:01:58]}  a5 {[%clk 0:01:21]} 29. e4 {[%clk 0:01:56]}  h5 {[%clk 0:01:17]} 30. g5 {[%clk 0:01:49]}  Be8 {[%clk 0:01:10]} 31. h4 {[%clk 0:01:46]}  Bd6 {[%clk 0:01:04]} 32. e5 {[%clk 0:01:40]}  Bb8 {[%clk 0:01:03]} 33. Rc4 {[%clk 0:01:36]}  Bxc6 {[%clk 0:00:39]} 34. Rxc6 {[%clk 0:01:35]}  Rxc6 {[%clk 0:00:38]} 35. dxc6 {[%clk 0:01:35]}  Bc7 {[%clk 0:00:35]} 36. Bc5 {[%clk 0:01:30]}  Kf7 {[%clk 0:00:35]} 37. Bd6 {[%clk 0:01:30]}  Bb6 {[%clk 0:00:28]} 38. c7 {[%clk 0:01:29]} 1-0


[Site "https://www.chess.com"]

[Event "Titled Tuesday Blitz May 23 Early 2023"]
[White "Melikyan, Gnel"]
[Black "Mouhamad, Joachim"]
[WhiteFideId "54109990"]
[BlackFideId "656410"]
[WhiteElo "2138"]
[BlackElo "2125"]
[Result "1-0"]
[Round "06"]
[TimeControl "180+2"]
[Date "2023.05.23"]
[WhiteClock "0:00:07"]
[BlackClock "0:00:00"]

1. e4 {[%clk 0:03:00]}  c5 {[%clk 0:02:59]} 2. Nf3 {[%clk 0:02:59]}  Nc6 {[%clk 0:02:59]} 3. Bb5 {[%clk 0:02:58]}  g6 {[%clk 0:02:59]} 4. O-O {[%clk 0:02:58]}  Bg7 {[%clk 0:03:00]} 5. c3 {[%clk 0:02:58]}  Nf6 {[%clk 0:03:00]} 6. Re1 {[%clk 0:02:58]}  O-O {[%clk 0:02:56]} 7. d4 {[%clk 0:02:59]}  d5 {[%clk 0:02:56]} 8. e5 {[%clk 0:02:58]}  Ne4 {[%clk 0:02:56]} 9. h3 {[%clk 0:02:41]}  Qb6 {[%clk 0:02:53]} 10. a4 {[%clk 0:02:38]}  a6 {[%clk 0:02:46]} 11. Bxc6 {[%clk 0:02:35]}  bxc6 {[%clk 0:02:46]} 12. a5 {[%clk 0:02:33]}  Qb7 {[%clk 0:02:39]} 13. Nbd2 {[%clk 0:02:29]}  Bf5 {[%clk 0:02:36]} 14. b3 {[%clk 0:01:56]}  Rab8 {[%clk 0:02:34]} 15. Nxe4 {[%clk 0:01:51]}  Bxe4 {[%clk 0:02:34]} 16. Nd2 {[%clk 0:01:48]}  Bf5 {[%clk 0:02:32]} 17. Ba3 {[%clk 0:01:35]}  cxd4 {[%clk 0:02:27]} 18. cxd4 {[%clk 0:01:34]}  f6 {[%clk 0:02:23]} 19. exf6 {[%clk 0:01:27]}  Bxf6 {[%clk 0:02:23]} 20. Bc5 {[%clk 0:01:25]}  Qc7 {[%clk 0:02:17]} 21. Qe2 {[%clk 0:01:20]}  Rfe8 {[%clk 0:02:13]} 22. Qxa6 {[%clk 0:01:19]}  e5 {[%clk 0:02:09]} 23. dxe5 {[%clk 0:01:17]}  Bxe5 {[%clk 0:02:03]} 24. Rac1 {[%clk 0:01:12]}  Bh2+ {[%clk 0:01:58]} 25. Kh1 {[%clk 0:01:11]}  Bf4 {[%clk 0:01:59]} 26. Be3 {[%clk 0:01:04]}  Bxe3 {[%clk 0:01:52]} 27. Rxe3 {[%clk 0:01:00]}  Rxe3 {[%clk 0:01:44]} 28. fxe3 {[%clk 0:01:01]}  Bd7 {[%clk 0:01:37]} 29. Ra1 {[%clk 0:00:45]}  Qe5 {[%clk 0:01:10]} 30. Rf1 {[%clk 0:00:39]}  Qxe3 {[%clk 0:01:05]} 31. Nf3 {[%clk 0:00:26]}  Rf8 {[%clk 0:00:48]} 32. Qb7 {[%clk 0:00:17]}  Bf5 {[%clk 0:00:32]} 33. Qxc6 {[%clk 0:00:15]}  Be4 {[%clk 0:00:32]} 34. Qe6+ {[%clk 0:00:14]}  Kg7 {[%clk 0:00:33]} 35. Qe5+ {[%clk 0:00:14]}  Kg8 {[%clk 0:00:32]} 36. a6 {[%clk 0:00:13]}  Qe2 {[%clk 0:00:28]} 37. Re1 {[%clk 0:00:09]}  Qf2 {[%clk 0:00:23]} 38. Rg1 {[%clk 0:00:03]}  Bxf3 {[%clk 0:00:18]} 39. Qe6+ {[%clk 0:00:03]}  Kg7 {[%clk 0:00:17]} 40. gxf3 {[%clk 0:00:04]}  Qxf3+ {[%clk 0:00:15]} 41. Rg2 {[%clk 0:00:03]}  Qf1+ {[%clk 0:00:12]} 42. Kh2 {[%clk 0:00:04]}  Qf4+ {[%clk 0:00:12]} 43. Kh1 {[%clk 0:00:04]}  Rf6 {[%clk 0:00:08]} 44. Qe7+ {[%clk 0:00:04]}  Kh6 {[%clk 0:00:08]} 45. a7 {[%clk 0:00:05]}  Qf1+ {[%clk 0:00:08]} 46. Kh2 {[%clk 0:00:05]}  Qf4+ {[%clk 0:00:08]} 47. Kh1 {[%clk 0:00:06]}  Qc1+ {[%clk 0:00:08]} 48. Rg1 {[%clk 0:00:07]}  Rf1 {[%clk 0:00:05]} 49. Qh4+ {[%clk 0:00:05]}  Kg7 {[%clk 0:00:06]} 50. Qd4+ {[%clk 0:00:06]}  Kh6 {[%clk 0:00:00]} 51. a8=Q {[%clk 0:00:07]} 1-0


[Site "https://www.chess.com"]

[Event "Titled Tuesday Blitz May 23 Early 2023"]
[White "Lopez Mulet, Inigo"]
[Black "Senft, Sean"]
[WhiteFideId "22235620"]
[BlackFideId "2044960"]
[WhiteElo "2289"]
[BlackElo "1989"]
[Result "0-1"]
[Round "06"]
[TimeControl "180+2"]
[Date "2023.05.23"]
[WhiteClock "0:00:48"]
[BlackClock "0:00:05"]

1. c4 {[%clk 0:02:57]}  c5 {[%clk 0:03:00]} 2. Nc3 {[%clk 0:02:57]}  Nc6 {[%clk 0:03:00]} 3. g3 {[%clk 0:02:58]}  g6 {[%clk 0:03:00]} 4. Bg2 {[%clk 0:02:59]}  Bg7 {[%clk 0:03:01]} 5. e4 {[%clk 0:02:59]}  e5 {[%clk 0:03:02]} 6. Nge2 {[%clk 0:03:00]}  Nge7 {[%clk 0:03:02]} 7. d3 {[%clk 0:03:00]}  O-O {[%clk 0:03:03]} 8. Be3 {[%clk 0:02:55]}  d6 {[%clk 0:03:03]} 9. Qd2 {[%clk 0:02:55]}  Nd4 {[%clk 0:03:00]} 10. O-O-O {[%clk 0:02:53]}  Rb8 {[%clk 0:02:58]} 11. h4 {[%clk 0:02:52]}  b5 {[%clk 0:02:58]} 12. h5 {[%clk 0:02:50]}  bxc4 {[%clk 0:02:42]} 13. dxc4 {[%clk 0:02:51]}  Be6 {[%clk 0:02:36]} 14. Bh6 {[%clk 0:02:49]}  Bxc4 {[%clk 0:01:26]} 15. hxg6 {[%clk 0:02:31]}  fxg6 {[%clk 0:01:20]} 16. Bxg7 {[%clk 0:02:31]}  Kxg7 {[%clk 0:01:20]} 17. Qh6+ {[%clk 0:02:28]}  Kf7 {[%clk 0:01:21]} 18. Qxh7+ {[%clk 0:02:28]}  Ke8 {[%clk 0:01:21]} 19. Nxd4 {[%clk 0:02:22]}  cxd4 {[%clk 0:01:21]} 20. Nd5 {[%clk 0:02:21]}  Bxd5 {[%clk 0:01:18]} 21. exd5 {[%clk 0:02:21]}  Rxf2 {[%clk 0:00:38]} 22. Qh8+ {[%clk 0:01:44]}  Kd7 {[%clk 0:00:38]} 23. Bh3+ {[%clk 0:01:37]}  Kc7 {[%clk 0:00:38]} 24. Qxd8+ {[%clk 0:01:36]}  Kxd8 {[%clk 0:00:39]} 25. Rhf1 {[%clk 0:01:34]}  Rbxb2 {[%clk 0:00:35]} 26. Rxf2 {[%clk 0:01:33]}  Rxf2 {[%clk 0:00:35]} 27. Be6 {[%clk 0:01:31]}  Rxa2 {[%clk 0:00:35]} 28. Kb1 {[%clk 0:01:31]}  Rg2 {[%clk 0:00:31]} 29. g4 {[%clk 0:01:31]}  Kc7 {[%clk 0:00:23]} 30. Rh1 {[%clk 0:01:27]}  d3 {[%clk 0:00:20]} 31. Kc1 {[%clk 0:01:26]}  e4 {[%clk 0:00:20]} 32. Kd1 {[%clk 0:01:22]}  e3 {[%clk 0:00:20]} 33. Re1 {[%clk 0:01:23]}  Rd2+ {[%clk 0:00:17]} 34. Kc1 {[%clk 0:01:23]}  Rc2+ {[%clk 0:00:18]} 35. Kb1 {[%clk 0:01:23]}  d2 {[%clk 0:00:17]} 36. Rd1 {[%clk 0:01:16]}  e2 {[%clk 0:00:16]} 37. Kxc2 {[%clk 0:01:16]}  e1=Q {[%clk 0:00:16]} 38. Rxd2 {[%clk 0:01:17]}  Qe4+ {[%clk 0:00:15]} 39. Kc3 {[%clk 0:01:16]}  a5 {[%clk 0:00:14]} 40. Rd4 {[%clk 0:01:15]}  Qe3+ {[%clk 0:00:14]} 41. Kc4 {[%clk 0:01:16]}  Nc8 {[%clk 0:00:11]} 42. Rd3 {[%clk 0:01:15]}  Qc5+ {[%clk 0:00:11]} 43. Kb3 {[%clk 0:01:15]}  Qb4+ {[%clk 0:00:11]} 44. Kc2 {[%clk 0:01:15]}  Nb6 {[%clk 0:00:11]} 45. Rc3+ {[%clk 0:01:09]}  Kb7 {[%clk 0:00:11]} 46. g5 {[%clk 0:01:05]}  a4 {[%clk 0:00:12]} 47. Bh3 {[%clk 0:01:01]}  Nc4 {[%clk 0:00:11]} 48. Kd3 {[%clk 0:00:59]}  Nb2+ {[%clk 0:00:11]} 49. Kc2 {[%clk 0:01:00]}  Nc4 {[%clk 0:00:08]} 50. Bf1 {[%clk 0:00:58]}  Ne5 {[%clk 0:00:07]} 51. Be2 {[%clk 0:00:56]}  Kb6 {[%clk 0:00:07]} 52. Bd1 {[%clk 0:00:55]}  Ka5 {[%clk 0:00:07]} 53. Rc8 {[%clk 0:00:55]}  Qe4+ {[%clk 0:00:06]} 54. Kc1 {[%clk 0:00:53]}  Qxd5 {[%clk 0:00:07]} 55. Bc2 {[%clk 0:00:52]}  Qh1+ {[%clk 0:00:05]} 56. Kb2 {[%clk 0:00:48]}  Qb7+ {[%clk 0:00:05]} 0-1


[Site "https://www.chess.com"]

[Event "Titled Tuesday Blitz May 23 Early 2023"]
[White "Gurevich, Dmitry"]
[Black "Al-Tarboush, Ward"]
[WhiteFideId "2000407"]
[BlackFideId "7601450"]
[WhiteElo "2506"]
[BlackElo "2265"]
[Result "0-1"]
[Round "06"]
[TimeControl "180+2"]
[Date "2023.05.23"]
[WhiteClock "0:01:08"]
[BlackClock "0:01:06"]

1. d4 {[%clk 0:03:00]}  Nf6 {[%clk 0:02:59]} 2. c4 {[%clk 0:03:00]}  b6 {[%clk 0:02:59]} 3. Nc3 {[%clk 0:02:59]}  Bb7 {[%clk 0:02:57]} 4. f3 {[%clk 0:02:58]}  d5 {[%clk 0:02:57]} 5. cxd5 {[%clk 0:02:57]}  Nxd5 {[%clk 0:02:58]} 6. e4 {[%clk 0:02:57]}  Nxc3 {[%clk 0:02:58]} 7. bxc3 {[%clk 0:02:57]}  e5 {[%clk 0:02:49]} 8. Be3 {[%clk 0:02:56]}  exd4 {[%clk 0:02:47]} 9. cxd4 {[%clk 0:02:56]}  Bb4+ {[%clk 0:02:47]} 10. Kf2 {[%clk 0:02:55]}  O-O {[%clk 0:02:47]} 11. Bd3 {[%clk 0:02:44]}  Bc3 {[%clk 0:02:38]} 12. Ne2 {[%clk 0:02:35]}  Bxa1 {[%clk 0:02:38]} 13. Qxa1 {[%clk 0:02:36]}  Nc6 {[%clk 0:02:35]} 14. Rc1 {[%clk 0:02:32]}  Ne5 {[%clk 0:02:30]} 15. Bb1 {[%clk 0:02:27]}  Ng6 {[%clk 0:02:24]} 16. Kg1 {[%clk 0:02:24]}  Qe7 {[%clk 0:02:16]} 17. Ng3 {[%clk 0:02:16]}  f5 {[%clk 0:02:14]} 18. d5 {[%clk 0:02:06]}  f4 {[%clk 0:02:09]} 19. Bd4 {[%clk 0:02:00]}  fxg3 {[%clk 0:02:07]} 20. hxg3 {[%clk 0:02:01]}  Rac8 {[%clk 0:01:48]} 21. a4 {[%clk 0:01:58]}  c6 {[%clk 0:01:46]} 22. d6 {[%clk 0:01:53]}  Qxd6 {[%clk 0:01:41]} 23. Bxg7 {[%clk 0:01:43]}  Rf7 {[%clk 0:01:40]} 24. Ba2 {[%clk 0:01:41]}  Rc7 {[%clk 0:01:29]} 25. Rd1 {[%clk 0:01:32]}  Qc5+ {[%clk 0:01:19]} 26. Bd4 {[%clk 0:01:30]}  Qg5 {[%clk 0:01:11]} 27. Bh8 {[%clk 0:01:08]}  Nxh8 {[%clk 0:01:06]} 0-1


[Site "https://www.chess.com"]